bitfinex/quotes_SOLUSD_20250310
["timestamp","ask_amount","ask_price","bid_price","bid_amount"]
[1741621921181,10.91612024,123.21,123.2,62.01483247]
[1741621921387,0.17612024,123.21,123.2,62.15699404]
[1741621921601,0.17612024,123.21,123.2,61.8726709]
[1741621922298,0.17612024,123.21,123.16,0.063]
[1741621922496,0.17612024,123.21,123.16,61.9356709]
[1741621922497,18.64964886,123.2,123.16,61.9356709]
[1741621922707,0.17612024,123.21,123.18,61.8726709]
[1741621922879,0.17612024,123.21,123.2,61.8726709]
[1741621923394,0.17612024,123.21,123.2,62.15699404]
[1741621924414,5.647e-05,123.22,123.21,0.28432314]
[1741621924581,8.683e-05,123.23,123.21,142.6793138]
[1741621924784,5.041e-05,123.24,123.23,18.933972]
[1741621924990,5.041e-05,123.24,123.23,143.8958806]
[1741621925316,0.16603119,123.25,123.23,143.8958806]
[1741621925510,0.16603119,123.25,123.24,143.89579479]
[1741621925714,0.16603119,123.25,123.24,124.02966494]
[1741621926383,0.16603119,123.25,123.24,132.14386494]
[1741621927008,0.16603119,123.25,123.24,150.7935138]
[1741621927299,0.16785294,123.26,123.25,0.28432314]
[1741621927503,0.16785294,123.26,123.25,62.15699404]
[1741621927705,0.32943682,123.26,123.25,62.15699404]
[1741621928088,3.682e-05,123.26,123.25,80.8066429]
[1741621928408,3.682e-05,123.26,123.25,90.13654673]
[1741621929184,4.318e-05,123.27,123.25,90.13654673]
[1741621929385,0.17463162,123.29,123.28,20.28432314]
[1741621929611,3.162e-05,123.29,123.28,145.24567991]
[1741621930118,3.162e-05,123.29,123.28,82.15699404]
[1741621930490,3.162e-05,123.29,123.28,90.26859404]
[1741621931004,3.162e-05,123.29,123.28,62.01483247]
[1741621931188,3.162e-05,123.29,123.27,61.8726709]
[1741621931387,10.72,123.28,123.27,0.14216157]
[1741621931586,10.72,123.28,123.27,61.8726709]
[1741621931786,10.72,123.28,123.24,61.8726709]
[1741621932006,80.52231976,123.27,123.2,8.1166]
[1741621932212,18.64964886,123.27,123.23,61.8726709]
[1741621932420,91.82,123.28,123.24,61.8726709]
[1741621932622,91.82,123.28,123.26,61.8726709]
[1741621932822,18.8316,123.28,123.24,0.14216157]
[1741621933022,276.71270252,123.29,123.26,0.14216157]
[1741621933023,10.72,123.27,123.26,0.14216157]
[1741621933389,10.72,123.27,123.26,62.15699404]
[1741621934615,10.72,123.27,123.26,70.26989404]
[1741621934795,18.8323,123.27,123.24,61.8726709]
[1741621934990,80.7049709,123.27,123.22,61.8726709]
[1741621935191,10.72,123.27,123.23,61.8726709]
[1741621935609,18.8324,123.27,123.23,61.8726709]
[1741621935789,80.7050709,123.27,123.22,61.8726709]
[1741621935992,18.8324,123.27,123.23,61.8726709]
[1741621936412,10.72,123.27,123.23,61.8726709]
[1741621936609,80.52231976,123.26,123.21,61.8726709]
[1741621936825,80.52231976,123.24,123.19,61.8726709]
[1741621936995,61.8726709,123.23,123.18,61.9356709]
[1741621937310,18.64964886,123.24,123.19,61.8726709]
[1741621937311,80.52231976,123.24,123.19,61.8726709]
[1741621937515,295.96,123.25,123.22,61.8726709]
[1741621937819,295.96,123.25,123.22,0.14216157]
[1741621937820,10.72,123.23,123.22,0.14216157]
[1741621939031,10.72,123.23,123.22,70.13033247]
[1741621939229,10.72,123.23,123.22,0.14216157]
[1741621939404,10.72,123.23,123.21,61.8726709]
[1741621939910,10.72,123.23,123.22,61.8726709]
[1741621940807,10.72,123.23,123.22,69.9881709]
[1741621941206,10.72,123.23,123.19,8.25946157]
[1741621941412,18.8349,123.23,123.19,61.8726709]
[1741621941617,80.7075709,123.23,123.18,61.9356709]
[1741621941819,80.52231976,123.22,123.18,0.063]
[1741621942010,80.52231976,123.19,123.18,0.063]
[1741621942505,18.64964886,123.2,123.18,0.063]
[1741621942705,81.1,123.21,123.18,0.063]
[1741621942930,18.64964886,123.2,123.18,0.063]
[1741621943134,80.52231976,123.2,123.18,0.063]
[1741621943431,151.0889709,123.21,123.18,0.063]
[1741621943605,18.64964886,123.2,123.18,0.063]
[1741621943808,80.52231976,123.19,123.18,0.063]
[1741621944306,18.64964886,123.19,123.18,0.063]
[1741621944506,18.64964886,123.2,123.18,0.063]
[1741621944727,38.64964886,123.19,123.18,0.063]
[1741621944933,18.64964886,123.19,123.18,0.063]
[1741621945166,88.63981976,123.19,123.18,0.063]
[1741621945439,169.73981976,123.19,123.18,0.063]
[1741621946317,110.44964886,123.19,123.18,0.063]
[1741621946527,118.56714886,123.19,123.18,0.063]
[1741621946728,180.43981976,123.19,123.18,0.063]
[1741621947123,110.44964886,123.19,123.18,0.063]
[1741621947637,10.7,123.19,123.18,0.063]
[1741621947836,0.15577275,123.19,123.18,61.9356709]
[1741621948043,10.85577275,123.19,123.18,61.9356709]
[1741621948360,10.85577275,123.19,123.18,62.07783247]
[1741621948732,10.85577275,123.19,123.18,0.063]
[1741621949229,10.85577275,123.19,123.18,61.9356709]
[1741621949422,10.85577275,123.19,123.18,70.0538709]
[1741621949624,10.85577275,123.19,123.18,61.9356709]
[1741621950040,10.85577275,123.19,123.18,0.063]
[1741621950357,10.85577275,123.19,123.18,61.9356709]
[1741621950532,10.85577275,123.19,123.18,70.19603247]
[1741621951130,0.15577275,123.19,123.18,132.21086494]
[1741621952226,0.15577275,123.19,123.18,70.33819404]
[1741621952431,0.15577275,123.19,123.18,62.07783247]
[1741621952639,0.15577275,123.19,123.18,70.19603247]
[1741621952849,0.15577275,123.19,123.18,132.21086494]
[1741621953049,0.15577275,123.19,123.18,70.33819404]
[1741621953224,0.15577275,123.19,123.18,62.07783247]
[1741621953433,0.15577275,123.19,123.18,0.20516157]
[1741621953744,0.15577275,123.19,123.18,0.063]
[1741621953933,18.80542161,123.19,123.18,0.063]
[1741621954133,0.15577275,123.19,123.18,0.063]
[1741621955153,0.15577275,123.19,123.18,61.9356709]
[1741621955343,0.15577275,123.19,123.18,0.063]
[1741621957052,0.15577275,123.19,123.18,61.9356709]
[1741621957243,0.15577275,123.19,123.18,0.063]
[1741621957439,0.15577275,123.19,123.18,62.21999404]
[1741621957847,0.15577275,123.19,123.18,62.07783247]
[1741621958053,0.15577275,123.19,123.18,124.09266494]
[1741621958054,7.275e-05,123.19,123.18,124.09266494]
[1741621959158,7.275e-05,123.19,123.18,132.21086494]
[1741621959360,7.275e-05,123.19,123.18,150.8605138]
[1741621959749,7.275e-05,123.19,123.18,132.21086494]
[1741621960958,7.275e-05,123.19,123.18,124.09266494]
[1741621961156,7.275e-05,123.19,123.18,62.21999404]
[1741621961456,7.275e-05,123.19,123.18,70.33819404]
[1741621963838,7.275e-05,123.19,123.18,61.9356709]
[1741621964038,7.275e-05,123.19,123.18,0.063]
[1741621964257,7.275e-05,123.19,123.18,61.9356709]
[1741621966367,7.275e-05,123.19,123.18,0.063]
[1741621967769,18.80398217,123.19,123.18,0.063]
[1741621968866,0.15426056,123.19,123.18,0.063]
[1741621969370,10.83426056,123.19,123.18,0.22589225]
[1741621969571,10.83426056,123.19,123.18,62.09856315]
[1741621970044,10.83426056,123.19,123.18,0.22589225]
[1741621970445,18.95176056,123.19,123.18,0.22589225]
[1741621970643,78.85490183,123.19,123.18,0.22589225]
[1741621971159,37.60140942,123.19,123.18,0.22589225]
[1741621971658,78.85490183,123.19,123.18,0.22589225]
[1741621972255,37.60140942,123.19,123.18,0.22589225]
[1741621973861,78.85490183,123.19,123.18,0.22589225]
[1741621974963,37.60140942,123.19,123.18,0.22589225]
[1741621975271,78.85490183,123.19,123.18,0.22589225]
[1741621975650,37.60140942,123.19,123.18,0.22589225]
[1741621977076,10.83426056,123.19,123.18,0.22589225]
[1741621977372,10.86426056,123.19,123.18,0.22589225]
[1741621977552,18.98176056,123.19,123.18,0.22589225]
[1741621977750,10.86426056,123.19,123.18,41.47938466]
[1741621977953,10.86426056,123.19,123.18,49.59758466]
[1741621978556,10.86426056,123.19,123.18,41.47938466]
[1741621979355,10.86426056,123.19,123.18,0.22589225]
[1741621979552,10.86426056,123.19,123.18,41.47938466]
[1741621979757,0.18426056,123.19,123.18,49.73974623]
[1741621980198,0.18426056,123.19,123.18,90.99323864]
[1741621980364,0.18426056,123.19,123.18,91.13540021]
[1741621980558,0.18426056,123.19,123.18,0.51021539]
[1741621980876,0.18426056,123.19,123.18,41.47938466]
[1741621981077,0.18426056,123.19,123.18,0.22589225]
[1741621981455,0.18426056,123.19,123.18,41.47938466]
[1741621981662,0.18426056,123.19,123.18,49.8819078]
[1741621981958,0.18426056,123.19,123.18,91.13540021]
[1741621982585,0.18426056,123.19,123.18,49.8819078]
[1741621982885,0.15024797,123.2,123.19,0.28432314]
[1741621983071,0.15024797,123.2,123.19,41.53781555]
[1741621983968,0.16947215,123.21,123.19,50.87244678]
[1741621984161,7.215e-05,123.21,123.2,41.53781555]
[1741621984361,4.927e-05,123.22,123.21,0.28432314]
[1741621984572,0.15428313,123.24,123.21,40.15080306]
[1741621984772,0.15428313,123.24,123.23,82.79130796]
[1741621985280,0.15767411,123.27,123.24,18.933972]
[1741621985485,0.15767411,123.27,123.25,41.53781555]
[1741621985981,0.15767411,123.27,123.25,49.65131555]
[1741621986287,0.15767411,123.27,123.25,41.25349241]
[1741621986457,0.15767411,123.27,123.23,0.14216157]
[1741621986663,0.15767411,123.27,123.25,41.25349241]
[1741621987381,0.15767411,123.27,123.24,0.14216157]
[1741621987702,8.26011276,123.26,123.23,41.39565398]
[1741621987871,8.26011276,123.26,123.21,41.53781555]
[1741621988182,0.14721276,123.26,123.25,41.39565398]
[1741621988371,0.14721276,123.26,123.25,0.14216157]
[1741621988566,0.17721276,123.26,123.25,41.53781555]
[1741621988770,0.03,123.26,123.25,0.28432314]
[1741621988984,0.03,123.26,123.24,41.25349241]
[1741621989163,8.143,123.26,123.22,41.25349241]
[1741621989369,49.39649241,123.26,123.21,41.39565398]
[1741621989676,0.03,123.26,123.25,41.39565398]
[1741621989985,0.03,123.26,123.25,41.25349241]
[1741621990366,0.03,123.26,123.25,49.36699241]
[1741621991494,0.03,123.26,123.25,49.65131555]
[1741621991791,0.03,123.26,123.22,20.2875]
[1741621991997,0.03,123.26,123.25,49.65131555]
[1741621992462,0.03,123.26,123.19,8.1175]
[1741621992663,41.25349241,123.24,123.18,8.62811539]
[1741621992894,41.25349241,123.24,123.19,41.25349241]
[1741621992895,29.30964886,123.23,123.19,41.25349241]
[1741621993074,70.56314127,123.23,123.18,41.47938466]
[1741621993463,10.66,123.23,123.2,41.25349241]
[1741621993785,10.66,123.23,123.19,0.28432314]
[1741621993964,10.66,123.23,123.2,41.25349241]
[1741621994166,10.66,123.23,123.19,8.1175]
[1741621994361,10.66,123.23,123.21,41.25349241]
[1741621994680,10.66,123.23,123.22,41.25349241]
[1741621995275,10.64,123.25,123.22,41.25349241]
[1741621995476,10.64,123.25,123.23,41.25349241]
[1741621996076,10.64,123.25,123.21,8.1162]
[1741621996370,10.64,123.25,123.21,41.25349241]
[1741621996579,0.14216157,123.21,123.18,0.22589225]
[1741621996764,59.90314127,123.19,123.18,0.22589225]
[1741621996967,18.64964886,123.19,123.18,0.22589225]
[1741621998092,59.90314127,123.19,123.18,0.22589225]
[1741621999294,68.02064127,123.19,123.18,0.22589225]
[1741621999785,67.85774902,123.19,123.18,0.063]
[1741622000195,282.93991059,123.19,123.18,0.063]
[1741622000385,285.08207216,123.19,123.18,0.063]
[1741622000591,283.08207216,123.19,123.18,0.063]
[1741622000888,20.14216157,123.17,123.16,0.063]
[1741622001088,20.0,123.17,123.16,0.063]
[1741622001296,61.25349241,123.17,123.16,0.063]
[1741622001593,80.18746441,123.17,123.16,0.063]
[1741622001787,86.19776441,123.17,123.16,0.063]
[1741622002171,94.31656441,123.17,123.16,0.063]
[1741622002492,94.31656441,123.17,123.13,0.063]
[1741622002493,18.79181043,123.16,123.13,0.063]
[1741622002674,60.04530284,123.14,123.13,0.063]
[1741622002880,59.90314127,123.14,123.13,0.063]
[1741622003274,18.64964886,123.14,123.13,0.063]
[1741622003474,59.90314127,123.14,123.13,0.063]
[1741622004292,68.16610284,123.14,123.13,0.063]
[1741622004592,18.64964886,123.14,123.13,0.063]
[1741622005096,213.20314127,123.14,123.13,0.063]
[1741622005686,78.80610284,123.14,123.13,0.063]
[1741622005983,70.54314127,123.14,123.13,0.063]
[1741622006491,78.66394127,123.14,123.13,0.063]
[1741622006986,70.54314127,123.14,123.13,0.063]
[1741622007185,78.66394127,123.14,123.13,0.063]
[1741622007997,78.84183041,123.14,123.13,0.063]
[1741622008390,70.72103041,123.14,123.13,0.063]
[1741622008580,78.84183041,123.14,123.13,0.063]
[1741622009091,232.14183041,123.14,123.13,0.063]
[1741622010392,221.50183041,123.14,123.13,0.063]
[1741622010573,224.02103041,123.14,123.13,0.063]
[1741622010771,182.767538,123.14,123.13,0.063]
[1741622011997,232.14183041,123.14,123.13,0.063]
[1741622012204,79.12615355,123.14,123.13,0.063]
[1741622012378,0.14216157,123.13,123.09,0.03]
[1741622012680,41.25349241,123.1,123.09,0.03]
[1741622013182,59.90314127,123.1,123.09,0.03]
[1741622013396,81.1,123.12,123.09,0.03]
[1741622013594,18.64964886,123.11,123.09,0.03]
[1741622014099,59.90314127,123.11,123.09,0.03]
[1741622014308,68.02594127,123.11,123.09,0.03]
[1741622014504,59.90314127,123.1,123.09,0.03]
[1741622014702,213.20314127,123.1,123.09,0.03]
[1741622015585,213.34530284,123.1,123.09,0.03]
[1741622016199,221.46870284,123.1,123.09,0.03]
[1741622017002,68.31086441,123.1,123.09,0.03]
[1741622019615,68.16870284,123.1,123.09,0.03]
[1741622019980,68.31086441,123.1,123.09,0.03]
[1741622020283,68.16870284,123.1,123.09,0.03]
[1741622020486,68.31086441,123.1,123.09,0.03]
[1741622020690,76.38716441,123.1,123.09,0.0001]
[1741622021721,74.38716441,123.1,123.09,0.0001]
[1741622022193,0.14216157,123.08,123.07,0.063]
[1741622022395,39.698672,123.08,123.07,0.0001]
[1741622022600,0.14216157,123.06,123.05,0.063]
[1741622022795,38.79181043,123.04,123.03,0.03]
[1741622023127,80.04530284,123.04,123.03,0.03]
[1741622023410,80.18746441,123.04,123.03,0.03]
[1741622024291,79.83117731,123.04,123.03,0.03]
[1741622024518,87.95857731,123.04,123.03,0.03]
[1741622026414,38.79181043,123.01,123.0,0.063]
[1741622026613,98.79470284,123.01,123.0,0.063]
[1741622026908,140.19035682,123.01,123.0,0.063]
[1741622027288,98.93686441,123.01,123.0,0.063]
[1741622027791,29.44314023,123.01,123.0,0.063]
[1741622028309,60.17638378,123.01,123.0,0.063]
[1741622028490,10.79349137,123.01,123.0,0.063]
[1741622028694,29.44314023,123.01,123.0,0.063]
[1741622028899,78.96819421,123.01,123.0,0.063]
[1741622029108,78.82603264,123.01,123.0,0.063]
[1741622030517,78.96819421,123.01,123.0,0.063]
[1741622031019,38.933972,122.97,122.96,5.83e-05]
[1741622031192,80.18746441,122.97,122.96,5.83e-05]
[1741622031510,18.933972,122.96,122.86,41.25349241]
[1741622031726,18.64964886,122.9,122.85,1.7141]
[1741622031902,99.74964886,122.89,122.84,5.6022]
[1741622032093,41.25349241,122.86,122.81,41.25349241]
[1741622032287,10.62,122.85,122.81,41.25349241]
[1741622032624,18.64964886,122.85,122.82,41.25349241]
[1741622032792,10.62,122.84,122.83,41.25349241]
[1741622033103,10.62,122.88,122.83,41.39565398]
[1741622033309,10.62,122.88,122.87,41.25349241]
[1741622033698,153.3,122.94,122.88,0.28432314]
[1741622033890,10.62,122.93,122.91,41.25349241]
[1741622034306,10.62,122.93,122.9,41.25349241]
[1741622035115,10.62,122.93,122.87,8.61232314]
[1741622035303,18.64964886,122.92,122.87,8.328]
[1741622035503,18.64964886,122.92,122.88,41.25349241]
[1741622036309,18.64964886,122.92,122.89,41.25349241]
[1741622036619,10.62,122.93,122.9,41.25349241]
[1741622037501,18.64964886,122.94,122.9,41.25349241]
[1741622037708,18.64964886,122.94,122.88,0.28432314]
[1741622037709,10.62,122.93,122.92,41.25349241]
[1741622039209,10.62,122.93,122.92,0.28432314]
[1741622039815,10.62,122.96,122.92,0.28432314]
[1741622040323,10.62,122.96,122.95,41.25349241]
[1741622040821,215.57349137,123.01,122.95,49.67111555]
[1741622041118,10.62,123.0,122.98,41.25349241]
[1741622041305,10.62,123.0,122.99,41.25349241]
[1741622042098,10.62,123.0,122.98,61.25349241]
[1741622042508,0.17349137,123.01,122.99,41.25349241]
[1741622042718,0.17349137,123.01,123.0,49.38349241]
[1741622042896,0.17349137,123.01,123.0,97.46250796]
[1741622042897,10.79349137,123.01,123.0,97.46250796]
[1741622043098,10.79349137,123.01,123.0,99.27350796]
[1741622043516,10.79349137,123.01,123.0,57.73569241]
[1741622043718,10.79349137,123.01,123.0,99.27350796]
[1741622043918,10.79349137,123.01,123.0,57.73569241]
[1741622044313,10.79349137,123.01,122.99,49.38399241]
[1741622044526,10.79349137,123.01,123.0,41.25349241]
[1741622044926,10.79349137,123.01,123.0,49.38349241]
[1741622045128,10.79349137,123.01,123.0,8.13]
[1741622045315,10.79349137,123.01,123.0,49.38349241]
[1741622045924,10.79349137,123.01,123.0,90.92130796]
[1741622046300,10.79349137,123.01,123.0,49.38349241]
[1741622046912,0.17349137,123.01,123.0,90.92130796]
[1741622047122,3.39e-05,123.02,123.01,0.28432314]
[1741622047300,2.501e-05,123.03,123.01,41.53781555]
[1741622047624,9.73e-05,123.04,123.03,0.28432314]
[1741622047922,2.05e-05,123.07,123.06,20.0]
[1741622048122,2.05e-05,123.07,123.06,102.79130796]
[1741622049231,0.1507729,123.08,123.06,129.56705682]
[1741622049434,0.1507729,123.08,123.07,41.53781555]
[1741622050328,0.1507729,123.08,123.07,60.18746441]
[1741622050836,0.1507729,123.08,123.07,41.53781555]
[1741622051131,0.1507729,123.08,123.07,49.37889241]
[1741622051510,0.1507729,123.08,123.07,8.1254]
[1741622051827,0.1507729,123.08,123.07,49.37889241]
[1741622052008,0.1507729,123.08,123.07,41.25349241]
[1741622052427,0.1507729,123.08,123.06,28.1258]
[1741622052719,0.1507729,123.08,123.07,41.25349241]
[1741622053118,0.1507729,123.08,123.07,49.37889241]
[1741622054208,0.1507729,123.08,123.07,49.66321555]
[1741622054419,0.17258026,123.09,123.08,0.28432314]
[1741622054721,8.026e-05,123.09,123.08,41.53781555]
[1741622055242,8.026e-05,123.09,123.08,49.66251555]
[1741622056117,8.026e-05,123.09,123.08,41.25349241]
[1741622056701,8.026e-05,123.09,123.06,28.4413]
[1741622056927,8.026e-05,123.09,123.08,41.25349241]
[1741622057219,8.026e-05,123.09,123.08,8.1247]
[1741622057427,8.026e-05,123.09,123.07,49.37869241]
[1741622057749,8.026e-05,123.09,123.08,41.25349241]
[1741622058111,8.026e-05,123.09,123.08,41.53781555]
[1741622058311,8.026e-05,123.09,123.08,41.25349241]
[1741622058507,8.026e-05,123.09,123.08,41.53781555]
[1741622059235,8.026e-05,123.09,123.08,49.66251555]
[1741622059431,3.99e-05,123.1,123.09,41.25349241]
[1741622059819,3.99e-05,123.1,123.09,68.14696441]
[1741622060042,0.063,123.14,123.1,0.28432314]
[1741622060215,0.063,123.14,123.13,41.25349241]
[1741622060539,0.063,123.14,123.08,28.72092314]
[1741622060760,8.1839,123.14,123.09,41.25349241]
[1741622060919,41.25349241,123.12,123.07,49.37889241]
[1741622061120,51.83349241,123.11,123.07,8.1254]
[1741622061338,51.83349241,123.11,123.06,41.25349241]
[1741622061339,59.95629241,123.11,123.06,49.37939241]
[1741622061524,51.83349241,123.11,123.06,49.37939241]
[1741622061728,41.25349241,123.1,123.06,8.1259]
[1741622061927,41.25349241,123.08,123.03,41.25349241]
[1741622062126,41.25349241,123.06,123.01,41.25349241]
[1741622062324,10.58,123.05,123.01,41.25349241]
[1741622063142,59.90314127,123.04,122.96,20.3317]
[1741622063319,213.20314127,123.04,122.99,41.25349241]
[1741622063622,81.1,123.04,123.01,41.25349241]
[1741622063827,81.1,123.04,123.02,41.25349241]
[1741622064024,10.58,123.05,123.03,41.25349241]
[1741622064229,10.58,123.05,123.02,41.25349241]
[1741622064744,10.58,123.05,123.04,41.25349241]
[1741622065324,10.58,123.05,123.04,8.1274]
[1741622065551,10.58,123.05,123.04,49.38089241]
[1741622065749,10.58,123.05,123.04,41.25349241]
[1741622066052,10.58,123.05,123.04,49.38089241]
[1741622066255,10.58,123.05,123.04,41.25349241]
[1741622066420,10.58,123.05,123.02,41.25349241]
[1741622067467,18.7067,123.05,123.01,41.25349241]
[1741622067666,10.58,123.05,123.01,41.25349241]
[1741622067969,10.58,123.05,123.0,8.13]
[1741622067970,0.16040358,123.03,123.02,41.25349241]
[1741622069248,0.16040358,123.03,123.02,49.38219241]
[1741622069634,10.74040358,123.03,123.02,49.38219241]
[1741622069864,3.58e-06,123.03,123.02,49.66651555]
[1741622070133,1.267e-05,123.05,123.04,20.0]
[1741622070331,0.17517965,123.07,123.06,0.14216157]
[1741622070553,0.17517965,123.07,123.06,102.50698482]
[1741622071261,0.17517965,123.07,123.06,110.63308482]
[1741622071461,0.17517965,123.07,123.06,69.37959241]
[1741622072063,0.17517965,123.07,123.06,110.63308482]
[1741622072363,0.17517965,123.07,123.06,69.37959241]
[1741622072754,0.17517965,123.07,123.06,110.63308482]
[1741622073257,0.17517965,123.07,123.06,110.91740796]
[1741622073445,7.965e-05,123.07,123.06,110.91740796]
[1741622074268,7.965e-05,123.07,123.06,8.1261]
[1741622074450,7.965e-05,123.07,123.06,69.37959241]
[1741622074852,7.965e-05,123.07,123.05,41.25349241]
[1741622075251,7.965e-05,123.07,123.06,41.25349241]
[1741622075456,7.965e-05,123.07,123.06,49.37959241]
[1741622075653,7.965e-05,123.07,123.06,90.91740796]
[1741622076375,7.965e-05,123.07,123.06,49.66391555]
[1741622076672,7.965e-05,123.07,123.06,90.91740796]
[1741622077471,7.965e-05,123.07,123.06,49.37959241]
[1741622077668,7.965e-05,123.07,123.04,41.25349241]
[1741622078075,7.965e-05,123.07,123.02,8.1584]
[1741622078384,7.965e-05,123.07,123.03,41.25349241]
[1741622078760,7.965e-05,123.07,123.06,41.25349241]
[1741622078963,7.965e-05,123.07,123.05,41.25349241]
[1741622079258,7.965e-05,123.07,123.06,41.25349241]
[1741622079597,7.965e-05,123.07,123.06,90.91740796]
[1741622080663,7.783e-05,123.08,123.06,90.91740796]
[1741622080863,7.783e-05,123.08,123.07,41.25349241]
[1741622081066,7.783e-05,123.08,123.07,41.53781555]
[1741622082084,7.783e-05,123.08,123.07,49.66321555]
[1741622083285,0.06307783,123.08,123.07,49.66321555]
[1741622083488,0.06307783,123.08,123.07,8.1254]
[1741622083794,0.06307783,123.08,123.07,49.37889241]
[1741622084385,0.06307783,123.08,123.06,41.28349241]
[1741622084571,0.06307783,123.08,123.06,49.40949241]
[1741622084772,0.06307783,123.08,123.06,41.28349241]
[1741622085487,0.06307783,123.08,123.06,0.03]
[1741622085670,0.06307783,123.08,123.06,49.40949241]
[1741622085870,0.06307783,123.08,123.06,41.28349241]
[1741622086072,0.06307783,123.08,123.06,49.40949241]
[1741622086272,0.06307783,123.08,123.07,41.25349241]
[1741622086992,0.06307783,123.08,123.07,41.53781555]
[1741622087392,0.06307783,123.08,123.07,41.25349241]
[1741622087791,0.24101865,123.08,123.07,41.25349241]
[1741622088178,0.24101865,123.08,123.07,49.37889241]
[1741622088992,0.24094082,123.08,123.07,49.37889241]
[1741622089386,0.24094082,123.08,123.06,0.03]
[1741622089701,41.25349241,123.07,123.06,0.03]
[1741622090496,60.14408209,123.08,123.06,0.03]
[1741622091095,18.89058968,123.08,123.06,0.03]
[1741622091681,60.14408209,123.08,123.06,0.03]
[1741622091899,59.90314127,123.07,123.06,0.03]
[1741622092400,18.64964886,123.07,123.06,0.03]
[1741622094007,18.89058968,123.08,123.06,0.03]
[1741622094184,0.24094082,123.08,123.06,41.28349241]
[1741622094495,10.54,123.07,123.06,0.03]
[1741622095312,10.54,123.07,123.06,28.1561]
[1741622095598,10.54,123.07,123.06,69.40959241]
[1741622096183,0.24094082,123.08,123.06,69.40959241]
[1741622096396,0.24094082,123.08,123.07,49.37889241]
[1741622096994,0.24094082,123.08,123.07,8.1254]
[1741622097192,0.24094082,123.08,123.07,49.37889241]
[1741622097998,0.24094082,123.08,123.07,41.25349241]
[1741622098384,0.24094082,123.08,123.06,61.28349241]
[1741622098689,0.24094082,123.08,123.06,0.03]
[1741622098883,0.24094082,123.08,123.06,41.28349241]
[1741622099094,0.24094082,123.08,123.06,49.40949241]
[1741622099298,0.24094082,123.08,123.06,41.28349241]
[1741622099481,0.24094082,123.08,123.06,8.156]
[1741622099680,0.24094082,123.08,123.07,41.25349241]
[1741622100087,0.24094082,123.08,123.06,49.40949241]
[1741622100279,0.24094082,123.08,123.06,41.28349241]
[1741622100477,41.25349241,123.07,123.06,0.03]
[1741622100676,67.88140284,123.07,123.06,0.03]
[1741622100891,70.02356441,123.07,123.06,0.0001]
[1741622101102,20.0,123.03,123.02,0.03]
[1741622101284,171.54314127,123.03,123.02,0.03]
[1741622101491,110.28964886,123.03,123.02,0.03]
[1741622101690,91.64,123.03,123.02,0.03]
[1741622103205,159.67114127,123.03,123.02,0.03]
[1741622103399,91.64,123.03,123.02,0.03]
[1741622104314,151.54314127,123.03,123.02,0.03]
[1741622104611,110.28964886,123.03,123.02,0.03]
[1741622104922,159.67114127,123.03,123.02,0.03]
[1741622105407,151.54314127,123.03,123.02,0.03]
[1741622105617,91.64,123.03,123.02,0.03]
[1741622105786,81.1,123.03,123.02,0.03]
[1741622105989,91.64,123.03,123.02,0.03]
[1741622106507,215.22,123.05,123.03,8.128]
[1741622106688,10.54,123.04,123.03,8.41232314]
[1741622106891,10.54,123.04,123.03,49.38149241]
[1741622107294,10.54,123.04,123.03,49.66581555]
[1741622107795,10.69728149,123.04,123.03,49.66581555]
[1741622108326,10.69728149,123.04,123.03,8.128]
[1741622108788,10.69728149,123.04,123.03,49.38149241]
[1741622108988,10.69728149,123.04,123.03,41.25349241]
[1741622109984,10.69728149,123.04,123.02,0.03]
[1741622110185,41.25349241,123.03,123.02,0.03]
[1741622110488,49.38149241,123.03,123.02,0.03]
[1741622110688,68.03114127,123.03,123.02,0.03]
[1741622110884,74.39310284,123.03,123.02,0.03]
[1741622111090,74.39310284,123.03,122.95,0.03]
[1741622111091,1.72866157,123.01,122.95,0.03]
[1741622111300,41.25349241,122.98,122.95,0.03]
[1741622111506,10.52,122.97,122.95,0.03]
[1741622113717,10.52,122.97,122.95,41.28349241]
[1741622113891,10.52,122.97,122.95,0.03]
[1741622115813,18.64964886,122.96,122.95,0.03]
[1741622116029,51.77349241,122.97,122.95,0.03]
[1741622116196,10.52,122.97,122.95,0.03]
[1741622117615,10.52,122.97,122.96,41.25349241]
[1741622117798,81.1,122.98,122.96,41.25349241]
[1741622117799,18.64964886,123.01,122.96,41.25349241]
[1741622118115,41.25349241,122.99,122.95,0.03]
[1741622118710,8.1309,122.99,122.95,0.03]